[Event "Titled Tuesday Blitz August 1 Early 2023"]
[White "Schnaider, Ilan"]
[Black "Tokman, Ariel"]
[WhiteFideId "169013"]
[BlackFideId "117420"]
[WhiteElo "2688"]
[BlackElo "2494"]
[Result "1-0"]
[Round "7"]
[TimeControl "180+1"]
[Date "2023.08.01"]
[WhiteClock "0:00:05"]
[BlackClock "0:00:05"]
[Board "91"]

1. e4 {[%clk 0:02:58]}  Nf6 {[%clk 0:02:56]} 2. e5 {[%clk 0:02:57]}  Nd5 {[%clk 0:02:56]} 3. c4 {[%clk 0:02:58]}  Nb6 {[%clk 0:02:56]} 4. d4 {[%clk 0:02:58]}  d6 {[%clk 0:02:55]} 5. exd6 {[%clk 0:02:59]}  cxd6 {[%clk 0:02:53]} 6. Nc3 {[%clk 0:03:00]}  g6 {[%clk 0:02:53]} 7. Be3 {[%clk 0:03:00]}  Bg7 {[%clk 0:02:53]} 8. Rc1 {[%clk 0:03:00]}  O-O {[%clk 0:02:53]} 9. b3 {[%clk 0:03:00]}  Nc6 {[%clk 0:02:52]} 10. Nf3 {[%clk 0:03:00]}  Bg4 {[%clk 0:02:52]} 11. Be2 {[%clk 0:03:00]}  d5 {[%clk 0:02:50]} 12. c5 {[%clk 0:03:00]}  Nc8 {[%clk 0:02:50]} 13. h3 {[%clk 0:03:00]}  Bxf3 {[%clk 0:02:51]} 14. Bxf3 {[%clk 0:03:00]}  e6 {[%clk 0:02:52]} 15. O-O {[%clk 0:03:00]}  N8e7 {[%clk 0:02:52]} 16. Ne2 {[%clk 0:02:44]}  Nf5 {[%clk 0:02:51]} 17. Qd3 {[%clk 0:02:42]}  Nxe3 {[%clk 0:02:49]} 18. fxe3 {[%clk 0:02:41]}  Bh6 {[%clk 0:02:43]} 19. Rce1 {[%clk 0:02:38]}  a5 {[%clk 0:02:43]} 20. Nc3 {[%clk 0:02:36]}  Rb8 {[%clk 0:01:53]} 21. Na4 {[%clk 0:02:24]}  Qc7 {[%clk 0:01:18]} 22. a3 {[%clk 0:02:11]}  Ne7 {[%clk 0:01:07]} 23. Bg4 {[%clk 0:01:53]}  Bg7 {[%clk 0:00:57]} 24. Re2 {[%clk 0:01:41]}  h5 {[%clk 0:00:57]} 25. Bf3 {[%clk 0:01:41]}  Nf5 {[%clk 0:00:57]} 26. Rfe1 {[%clk 0:01:27]}  Qg3 {[%clk 0:00:52]} 27. Nb6 {[%clk 0:01:14]}  Rbd8 {[%clk 0:00:38]} 28. Rf1 {[%clk 0:01:06]}  e5 {[%clk 0:00:32]} 29. Bxd5 {[%clk 0:00:55]}  exd4 {[%clk 0:00:25]} 30. Rf3 {[%clk 0:00:55]}  Qg5 {[%clk 0:00:20]} 31. e4 {[%clk 0:00:51]}  Ne3 {[%clk 0:00:13]} 32. Ref2 {[%clk 0:00:42]}  Kh8 {[%clk 0:00:06]} 33. Bxf7 {[%clk 0:00:37]}  Be5 {[%clk 0:00:05]} 34. Nc4 {[%clk 0:00:31]}  Bg3 {[%clk 0:00:04]} 35. Re2 {[%clk 0:00:18]}  Rd7 {[%clk 0:00:02]} 36. Nxe3 {[%clk 0:00:16]}  Rdxf7 {[%clk 0:00:02]} 37. Qxd4+ {[%clk 0:00:13]}  Kh7 {[%clk 0:00:01]} 38. Rxf7+ {[%clk 0:00:06]}  Rxf7 {[%clk 0:00:02]} 39. Qd1 {[%clk 0:00:07]}  Be5 {[%clk 0:00:03]} 40. Nf1 {[%clk 0:00:04]}  Qf4 {[%clk 0:00:03]} 41. Qe1 {[%clk 0:00:05]}  h4 {[%clk 0:00:03]} 42. c6 {[%clk 0:00:04]}  Bd4+ {[%clk 0:00:04]} 43. Kh1 {[%clk 0:00:04]}  Qxf1+ {[%clk 0:00:04]} 44. Qxf1 {[%clk 0:00:03]}  Rxf1+ {[%clk 0:00:05]} 45. Kh2 {[%clk 0:00:04]}  Be5+ {[%clk 0:00:05]} 46. g3 {[%clk 0:00:04]}  Bxg3+ {[%clk 0:00:05]} 47. Kg2 {[%clk 0:00:05]}  Rc1 {[%clk 0:00:06]} 48. cxb7 {[%clk 0:00:05]}  Rb1 {[%clk 0:00:06]} 49. Re3 {[%clk 0:00:05]}  Bf4 {[%clk 0:00:06]} 50. Rf3 {[%clk 0:00:05]}  Be5 {[%clk 0:00:05]} 51. Rf7+ {[%clk 0:00:05]}  Kh6 {[%clk 0:00:05]} 52. Re7 {[%clk 0:00:05]}  Bf4 {[%clk 0:00:06]} 53. Rf7 {[%clk 0:00:04]}  g5 {[%clk 0:00:06]} 54. Rxf4 {[%clk 0:00:04]}  Rb2+ {[%clk 0:00:05]} 55. Kf1 {[%clk 0:00:02]}  Rxb3 {[%clk 0:00:06]} 56. Rf6+ {[%clk 0:00:02]}  Kh5 {[%clk 0:00:06]} 57. Rf7 {[%clk 0:00:02]}  a4 {[%clk 0:00:06]} 58. Rh7+ {[%clk 0:00:02]}  Kg6 {[%clk 0:00:06]} 59. Rc7 {[%clk 0:00:03]}  Kh5 {[%clk 0:00:06]} 60. e5 {[%clk 0:00:03]}  g4 {[%clk 0:00:06]} 61. hxg4+ {[%clk 0:00:04]}  Kxg4 {[%clk 0:00:07]} 62. e6 {[%clk 0:00:04]}  Kf3 {[%clk 0:00:07]} 63. Rf7+ {[%clk 0:00:04]}  Kg3 {[%clk 0:00:07]} 64. e7 {[%clk 0:00:04]}  h3 {[%clk 0:00:05]} 65. e8=Q {[%clk 0:00:05]} 1-0


[Site "https://www.chess.com"]

[Event "Titled Tuesday Blitz August 1 Early 2023"]
[White "Alamzhi21"]
[Black "Kaplan, Avi Harrison"]
[BlackFideId "30934559"]
[WhiteElo "2678"]
[BlackElo "2494"]
[Result "1-0"]
[Round "7"]
[TimeControl "180+1"]
[Date "2023.08.01"]
[WhiteClock "0:01:41"]
[BlackClock "0:00:32"]
[Board "92"]

1. d4 {[%clk 0:03:00]}  Nf6 {[%clk 0:02:53]} 2. Bf4 {[%clk 0:02:59]}  b6 {[%clk 0:02:49]} 3. Nf3 {[%clk 0:02:59]}  Bb7 {[%clk 0:02:49]} 4. e3 {[%clk 0:02:59]}  Nh5 {[%clk 0:02:49]} 5. Bg5 {[%clk 0:02:56]}  h6 {[%clk 0:02:49]} 6. Bh4 {[%clk 0:02:56]}  g5 {[%clk 0:02:49]} 7. Nfd2 {[%clk 0:02:55]}  Nf4 {[%clk 0:02:40]} 8. exf4 {[%clk 0:02:52]}  gxh4 {[%clk 0:02:39]} 9. Nf3 {[%clk 0:02:45]}  e6 {[%clk 0:02:31]} 10. Be2 {[%clk 0:02:40]}  Qf6 {[%clk 0:02:28]} 11. g3 {[%clk 0:02:39]}  hxg3 {[%clk 0:02:24]} 12. hxg3 {[%clk 0:02:39]}  c5 {[%clk 0:02:16]} 13. Rh2 {[%clk 0:02:24]}  Nc6 {[%clk 0:02:12]} 14. c3 {[%clk 0:02:12]}  O-O-O {[%clk 0:02:09]} 15. dxc5 {[%clk 0:02:11]}  Bxc5 {[%clk 0:02:08]} 16. Nbd2 {[%clk 0:02:10]}  d5 {[%clk 0:02:01]} 17. Nb3 {[%clk 0:02:08]}  Bd6 {[%clk 0:02:01]} 18. Nbd4 {[%clk 0:02:07]}  Kb8 {[%clk 0:01:59]} 19. Nxc6+ {[%clk 0:02:06]}  Bxc6 {[%clk 0:02:00]} 20. Qd4 {[%clk 0:02:06]}  Qe7 {[%clk 0:01:55]} 21. Qd2 {[%clk 0:02:01]}  Bb7 {[%clk 0:01:36]} 22. O-O-O {[%clk 0:01:58]}  Rc8 {[%clk 0:01:34]} 23. Kb1 {[%clk 0:01:57]}  a6 {[%clk 0:01:25]} 24. Rdh1 {[%clk 0:01:53]}  Qf6 {[%clk 0:01:22]} 25. Qd4 {[%clk 0:01:52]}  Qg6+ {[%clk 0:01:15]} 26. Bd3 {[%clk 0:01:49]}  Qg4 {[%clk 0:01:10]} 27. Ne5 {[%clk 0:01:45]}  Bxe5 {[%clk 0:01:04]} 28. fxe5 {[%clk 0:01:42]}  Ka7 {[%clk 0:00:32]} 29. Qxg4 {[%clk 0:01:41]} 1-0


[Site "https://www.chess.com"]

[Event "Titled Tuesday Blitz August 1 Early 2023"]
[White "Bettalli, Francesco"]
[Black "Koshulyan, Egor A."]
[WhiteFideId "2816453"]
[BlackFideId "24237000"]
[WhiteElo "2483"]
[BlackElo "2657"]
[Result "1-0"]
[Round "7"]
[TimeControl "180+1"]
[Date "2023.08.01"]
[WhiteClock "0:00:30"]
[BlackClock "0:00:12"]
[Board "95"]

1. e4 {[%clk 0:03:00]}  c5 {[%clk 0:03:00]} 2. Nc3 {[%clk 0:03:00]}  Nc6 {[%clk 0:03:00]} 3. Bb5 {[%clk 0:03:00]}  g5 {[%clk 0:03:00]} 4. d3 {[%clk 0:02:58]}  h6 {[%clk 0:02:59]} 5. h4 {[%clk 0:02:57]}  gxh4 {[%clk 0:02:59]} 6. Bxc6 {[%clk 0:02:57]}  dxc6 {[%clk 0:02:59]} 7. Rxh4 {[%clk 0:02:58]}  Bg7 {[%clk 0:02:59]} 8. Nf3 {[%clk 0:02:57]}  Be6 {[%clk 0:02:57]} 9. Be3 {[%clk 0:02:58]}  Qb6 {[%clk 0:02:52]} 10. Na4 {[%clk 0:02:55]}  Qa5+ {[%clk 0:02:50]} 11. c3 {[%clk 0:02:56]}  b6 {[%clk 0:02:49]} 12. e5 {[%clk 0:02:50]}  Qa6 {[%clk 0:02:39]} 13. Qc2 {[%clk 0:02:43]}  Bd5 {[%clk 0:02:32]} 14. d4 {[%clk 0:02:39]}  cxd4 {[%clk 0:02:28]} 15. Bxd4 {[%clk 0:02:36]}  e6 {[%clk 0:02:22]} 16. O-O-O {[%clk 0:02:33]}  Ne7 {[%clk 0:02:21]} 17. Rg4 {[%clk 0:02:31]}  Nf5 {[%clk 0:02:21]} 18. b3 {[%clk 0:02:28]}  h5 {[%clk 0:02:18]} 19. Rxg7 {[%clk 0:02:23]}  Nxg7 {[%clk 0:02:19]} 20. c4 {[%clk 0:02:24]}  Bxf3 {[%clk 0:02:17]} 21. gxf3 {[%clk 0:02:25]}  Nf5 {[%clk 0:02:17]} 22. Bb2 {[%clk 0:02:22]}  Qb7 {[%clk 0:02:12]} 23. Nc3 {[%clk 0:02:22]}  Rd8 {[%clk 0:02:07]} 24. Ne4 {[%clk 0:02:21]}  Rxd1+ {[%clk 0:02:06]} 25. Qxd1 {[%clk 0:02:22]}  c5 {[%clk 0:02:02]} 26. Kb1 {[%clk 0:02:13]}  Ke7 {[%clk 0:02:01]} 27. Bc1 {[%clk 0:02:13]}  Rg8 {[%clk 0:01:37]} 28. Bg5+ {[%clk 0:02:04]}  Rxg5 {[%clk 0:01:38]} 29. Nxg5 {[%clk 0:02:05]}  Qc7 {[%clk 0:01:35]} 30. f4 {[%clk 0:02:04]}  Ng7 {[%clk 0:01:24]} 31. Ne4 {[%clk 0:01:57]}  Qc6 {[%clk 0:01:10]} 32. Nf6 {[%clk 0:01:57]}  h4 {[%clk 0:01:11]} 33. Qg4 {[%clk 0:01:55]}  Nf5 {[%clk 0:01:08]} 34. Qg5 {[%clk 0:01:50]}  Kd8 {[%clk 0:01:07]} 35. Qg8+ {[%clk 0:01:47]}  Ke7 {[%clk 0:01:05]} 36. Qh8 {[%clk 0:01:38]}  b5 {[%clk 0:00:53]} 37. Qb8 {[%clk 0:01:26]}  bxc4 {[%clk 0:00:51]} 38. Qxa7+ {[%clk 0:01:26]}  Kf8 {[%clk 0:00:51]} 39. Qb8+ {[%clk 0:01:27]}  Ke7 {[%clk 0:00:50]} 40. bxc4 {[%clk 0:01:20]}  h3 {[%clk 0:00:47]} 41. Qh8 {[%clk 0:01:15]}  Qb7+ {[%clk 0:00:45]} 42. Kc1 {[%clk 0:01:07]}  Qh1+ {[%clk 0:00:34]} 43. Kd2 {[%clk 0:01:07]}  Qc6 {[%clk 0:00:29]} 44. Qxh3 {[%clk 0:01:04]}  Qa6 {[%clk 0:00:29]} 45. Qb3 {[%clk 0:01:03]}  Qa5+ {[%clk 0:00:29]} 46. Kd1 {[%clk 0:00:59]}  Qd8+ {[%clk 0:00:28]} 47. Ke1 {[%clk 0:00:56]}  Qa5+ {[%clk 0:00:28]} 48. Kf1 {[%clk 0:00:55]}  Qa8 {[%clk 0:00:29]} 49. Kg1 {[%clk 0:00:33]}  Nd4 {[%clk 0:00:24]} 50. Qb6 {[%clk 0:00:32]}  Qc8 {[%clk 0:00:12]} 51. Qd6# {[%clk 0:00:30]} 1-0


[Site "https://www.chess.com"]

[Event "Titled Tuesday Blitz August 1 Early 2023"]
[White "Kovalevsky, Stanislav"]
[Black "Arias, Juan Cruz"]
[WhiteFideId "13508598"]
[BlackFideId "118540"]
[WhiteElo "2483"]
[BlackElo "2635"]
[Result "0-1"]
[Round "7"]
[TimeControl "180+1"]
[Date "2023.08.01"]
[WhiteClock "0:02:08"]
[BlackClock "0:01:40"]
[Board "96"]

1. e4 {[%clk 0:02:58]}  e6 {[%clk 0:02:58]} 2. c4 {[%clk 0:02:59]}  d5 {[%clk 0:02:58]} 3. cxd5 {[%clk 0:02:59]}  exd5 {[%clk 0:02:59]} 4. exd5 {[%clk 0:03:00]}  Nf6 {[%clk 0:02:58]} 5. Nc3 {[%clk 0:03:01]}  Bd6 {[%clk 0:02:50]} 6. Bc4 {[%clk 0:02:59]}  O-O {[%clk 0:02:50]} 7. Nge2 {[%clk 0:02:58]}  Nbd7 {[%clk 0:02:50]} 8. d3 {[%clk 0:02:52]}  Nb6 {[%clk 0:02:46]} 9. O-O {[%clk 0:02:51]}  h6 {[%clk 0:02:42]} 10. Bf4 {[%clk 0:02:49]}  Bg4 {[%clk 0:02:37]} 11. f3 {[%clk 0:02:49]}  Bf5 {[%clk 0:02:15]} 12. Ne4 {[%clk 0:02:44]}  Bxf4 {[%clk 0:02:00]} 13. Nxf6+ {[%clk 0:02:36]}  Qxf6 {[%clk 0:02:01]} 14. Nxf4 {[%clk 0:02:36]}  Qd4+ {[%clk 0:02:01]} 15. Rf2 {[%clk 0:02:29]}  Qxf4 {[%clk 0:02:01]} 16. g4 {[%clk 0:02:30]}  Bg6 {[%clk 0:01:58]} 17. Bb3 {[%clk 0:02:30]}  Rfe8 {[%clk 0:01:58]} 18. Rc1 {[%clk 0:02:28]}  Re3 {[%clk 0:01:50]} 19. a4 {[%clk 0:02:19]}  a5 {[%clk 0:01:49]} 20. Qd2 {[%clk 0:02:12]}  Rae8 {[%clk 0:01:48]} 21. Qxa5 {[%clk 0:02:12]}  Rxf3 {[%clk 0:01:42]} 22. Rxf3 {[%clk 0:02:12]}  Qxf3 {[%clk 0:01:43]} 23. Qd2 {[%clk 0:02:08]}  Re2 {[%clk 0:01:40]} 0-1


[Site "https://www.chess.com"]

[Event "Titled Tuesday Blitz August 1 Early 2023"]
[White "Perdomo, Carlos Andres"]
[Black "chessmateto"]
[WhiteFideId "4400852"]
[WhiteElo "2599"]
[BlackElo "2470"]
[Result "1-0"]
[Round "7"]
[TimeControl "180+1"]
[Date "2023.08.01"]
[WhiteClock "0:00:14"]
[BlackClock "0:00:03"]
[Board "100"]

1. Nf3 {[%clk 0:03:00]}  d5 {[%clk 0:02:59]} 2. e3 {[%clk 0:02:57]}  Nf6 {[%clk 0:02:58]} 3. c4 {[%clk 0:02:55]}  c6 {[%clk 0:02:58]} 4. b3 {[%clk 0:02:55]}  g6 {[%clk 0:02:55]} 5. Bb2 {[%clk 0:02:55]}  Bg7 {[%clk 0:02:55]} 6. Be2 {[%clk 0:02:55]}  O-O {[%clk 0:02:55]} 7. O-O {[%clk 0:02:55]}  Re8 {[%clk 0:02:52]} 8. d4 {[%clk 0:02:53]}  Bf5 {[%clk 0:02:47]} 9. Nbd2 {[%clk 0:02:51]}  Nbd7 {[%clk 0:02:47]} 10. Nh4 {[%clk 0:02:48]}  Nf8 {[%clk 0:02:32]} 11. Nxf5 {[%clk 0:02:25]}  gxf5 {[%clk 0:02:31]} 12. c5 {[%clk 0:02:22]}  Ng6 {[%clk 0:02:21]} 13. f4 {[%clk 0:02:18]}  b6 {[%clk 0:02:12]} 14. b4 {[%clk 0:02:07]}  Rb8 {[%clk 0:02:07]} 15. Qc2 {[%clk 0:02:00]}  Ne4 {[%clk 0:02:00]} 16. Nxe4 {[%clk 0:01:54]}  fxe4 {[%clk 0:01:47]} 17. Rac1 {[%clk 0:01:44]}  b5 {[%clk 0:01:36]} 18. Bc3 {[%clk 0:01:38]}  e6 {[%clk 0:01:29]} 19. g4 {[%clk 0:01:32]}  f5 {[%clk 0:01:20]} 20. Be1 {[%clk 0:00:51]}  Kh8 {[%clk 0:01:12]} 21. g5 {[%clk 0:00:49]}  Bf8 {[%clk 0:00:57]} 22. h4 {[%clk 0:00:46]}  Be7 {[%clk 0:00:48]} 23. Kh1 {[%clk 0:00:26]}  Rg8 {[%clk 0:00:41]} 24. Rg1 {[%clk 0:00:24]}  Qf8 {[%clk 0:00:36]} 25. a4 {[%clk 0:00:21]}  a6 {[%clk 0:00:29]} 26. a5 {[%clk 0:00:20]}  Qg7 {[%clk 0:00:27]} 27. Rg2 {[%clk 0:00:19]}  Nf8 {[%clk 0:00:23]} 28. Bf2 {[%clk 0:00:19]}  h6 {[%clk 0:00:20]} 29. Rcg1 {[%clk 0:00:18]}  hxg5 {[%clk 0:00:20]} 30. hxg5 {[%clk 0:00:19]}  Qg6 {[%clk 0:00:11]} 31. Rh2+ {[%clk 0:00:20]}  Kg7 {[%clk 0:00:11]} 32. Bh5 {[%clk 0:00:19]}  Qh7 {[%clk 0:00:07]} 33. g6 {[%clk 0:00:16]}  Qh6 {[%clk 0:00:06]} 34. Bd1 {[%clk 0:00:16]}  Rh8 {[%clk 0:00:05]} 35. Rxh6 {[%clk 0:00:16]}  Rh7 {[%clk 0:00:03]} 36. gxh7+ {[%clk 0:00:14]} 1-0


[Site "https://www.chess.com"]

[Event "Titled Tuesday Blitz August 1 Early 2023"]
[White "Yashmetov, Mikhail"]
[Black "Derige Kane, Yan"]
[WhiteFideId "24198900"]
[BlackFideId "20665431"]
[WhiteElo "2468"]
[BlackElo "2595"]
[Result "0-1"]
[Round "7"]
[TimeControl "180+1"]
[Date "2023.08.01"]
[WhiteClock "0:01:20"]
[BlackClock "0:02:29"]
[Board "102"]

1. d4 {[%clk 0:03:00]}  d5 {[%clk 0:02:59]} 2. c4 {[%clk 0:03:01]}  e6 {[%clk 0:02:59]} 3. g3 {[%clk 0:03:01]}  Nf6 {[%clk 0:02:54]} 4. Bg2 {[%clk 0:03:01]}  Be7 {[%clk 0:02:54]} 5. Nf3 {[%clk 0:03:02]}  O-O {[%clk 0:02:55]} 6. O-O {[%clk 0:03:02]}  dxc4 {[%clk 0:02:56]} 7. Ne5 {[%clk 0:03:03]}  Nc6 {[%clk 0:02:56]} 8. Bxc6 {[%clk 0:03:03]}  bxc6 {[%clk 0:02:57]} 9. Nxc6 {[%clk 0:03:04]}  Qe8 {[%clk 0:02:57]} 10. Nxe7+ {[%clk 0:03:05]}  Qxe7 {[%clk 0:02:58]} 11. Qc2 {[%clk 0:03:06]}  e5 {[%clk 0:02:59]} 12. dxe5 {[%clk 0:02:55]}  Qxe5 {[%clk 0:03:00]} 13. Bf4 {[%clk 0:02:56]}  Qh5 {[%clk 0:02:59]} 14. Nc3 {[%clk 0:02:43]}  Bf5 {[%clk 0:02:57]} 15. Qc1 {[%clk 0:02:35]}  Rfe8 {[%clk 0:02:53]} 16. f3 {[%clk 0:02:23]}  Bh3 {[%clk 0:02:37]} 17. Rd1 {[%clk 0:02:22]}  Qc5+ {[%clk 0:02:35]} 18. Kh1 {[%clk 0:01:44]}  Qf2 {[%clk 0:02:33]} 19. Rg1 {[%clk 0:01:39]}  Rxe2 {[%clk 0:02:33]} 20. g4 {[%clk 0:01:20]}  Qxf3+ {[%clk 0:02:29]} 0-1


[Site "https://www.chess.com"]

[Event "Titled Tuesday Blitz August 1 Early 2023"]
[White "Rosh Jain"]
[Black "Bilan, Danila"]
[WhiteFideId "25789465"]
[BlackFideId "24161918"]
[WhiteElo "2455"]
[BlackElo "2576"]
[Result "1-0"]
[Round "7"]
[TimeControl "180+1"]
[Date "2023.08.01"]
[WhiteClock "0:00:43"]
[BlackClock "0:00:00"]
[Board "105"]

1. e4 {[%clk 0:02:53]}  c6 {[%clk 0:02:59]} 2. Nc3 {[%clk 0:02:53]}  d5 {[%clk 0:03:00]} 3. Nf3 {[%clk 0:02:53]}  Bg4 {[%clk 0:02:59]} 4. h3 {[%clk 0:02:53]}  Bxf3 {[%clk 0:02:58]} 5. Qxf3 {[%clk 0:02:54]}  e6 {[%clk 0:02:59]} 6. Be2 {[%clk 0:02:52]}  Nd7 {[%clk 0:02:57]} 7. O-O {[%clk 0:02:52]}  Ngf6 {[%clk 0:02:58]} 8. d4 {[%clk 0:02:51]}  dxe4 {[%clk 0:02:55]} 9. Nxe4 {[%clk 0:02:51]}  Nxe4 {[%clk 0:02:54]} 10. Qxe4 {[%clk 0:02:52]}  Be7 {[%clk 0:02:46]} 11. Qd3 {[%clk 0:02:52]}  O-O {[%clk 0:02:43]} 12. Bf4 {[%clk 0:02:52]}  Nf6 {[%clk 0:02:36]} 13. Bf3 {[%clk 0:02:51]}  Bd6 {[%clk 0:02:35]} 14. Bg5 {[%clk 0:02:49]}  h6 {[%clk 0:02:31]} 15. Bh4 {[%clk 0:02:47]}  Be7 {[%clk 0:02:25]} 16. Rad1 {[%clk 0:02:44]}  Nd5 {[%clk 0:02:21]} 17. Bxe7 {[%clk 0:02:44]}  Qxe7 {[%clk 0:02:21]} 18. g3 {[%clk 0:02:44]}  Rfd8 {[%clk 0:02:16]} 19. c3 {[%clk 0:02:42]}  Rac8 {[%clk 0:02:15]} 20. Rfe1 {[%clk 0:02:36]}  Qf6 {[%clk 0:01:59]} 21. Qe4 {[%clk 0:02:30]}  b6 {[%clk 0:01:45]} 22. Bg2 {[%clk 0:02:29]}  c5 {[%clk 0:01:10]} 23. dxc5 {[%clk 0:02:27]}  Rxc5 {[%clk 0:00:34]} 24. Rd2 {[%clk 0:02:24]}  Rcc8 {[%clk 0:00:22]} 25. Red1 {[%clk 0:02:22]}  Re8 {[%clk 0:00:15]} 26. a3 {[%clk 0:02:19]}  g6 {[%clk 0:00:09]} 27. c4 {[%clk 0:02:14]}  Ne7 {[%clk 0:00:10]} 28. b3 {[%clk 0:02:07]}  Nc6 {[%clk 0:00:06]} 29. Rd7 {[%clk 0:02:06]}  e5 {[%clk 0:00:04]} 30. Qd5 {[%clk 0:01:48]}  Nd4 {[%clk 0:00:03]} 31. Qb7 {[%clk 0:01:39]}  Rcd8 {[%clk 0:00:03]} 32. Qxa7 {[%clk 0:01:33]}  Rxd7 {[%clk 0:00:03]} 33. Qxd7 {[%clk 0:01:34]}  Rd8 {[%clk 0:00:04]} 34. Qg4 {[%clk 0:01:27]}  Nxb3 {[%clk 0:00:04]} 35. Rxd8+ {[%clk 0:01:23]}  Qxd8 {[%clk 0:00:04]} 36. Bd5 {[%clk 0:01:22]}  Qf6 {[%clk 0:00:03]} 37. h4 {[%clk 0:01:14]}  h5 {[%clk 0:00:03]} 38. Qd1 {[%clk 0:01:09]}  Nc5 {[%clk 0:00:03]} 39. Kg2 {[%clk 0:01:03]}  Kg7 {[%clk 0:00:04]} 40. Qe2 {[%clk 0:01:01]}  Qd6 {[%clk 0:00:04]} 41. Qf3 {[%clk 0:00:57]}  Qe7 {[%clk 0:00:04]} 42. Qc3 {[%clk 0:00:56]}  Qf6 {[%clk 0:00:03]} 43. Kf1 {[%clk 0:00:47]}  Qe7 {[%clk 0:00:01]} 44. Ke2 {[%clk 0:00:47]}  f6 {[%clk 0:00:02]} 45. Qb4 {[%clk 0:00:46]}  Qd6 {[%clk 0:00:02]} 46. a4 {[%clk 0:00:45]}  Qc7 {[%clk 0:00:00]} 47. Qb5 {[%clk 0:00:43]} 1-0


[Site "https://www.chess.com"]

[Event "Titled Tuesday Blitz August 1 Early 2023"]
[White "Ambartsumova, Karina"]
[Black "Nareks, Matic"]
[WhiteFideId "4166299"]
[BlackFideId "14629526"]
[WhiteElo "2572"]
[BlackElo "2453"]
[Result "0-1"]
[Round "7"]
[TimeControl "180+1"]
[Date "2023.08.01"]
[WhiteClock "0:00:01"]
[BlackClock "0:01:04"]
[Board "107"]

1. c4 {[%clk 0:03:00]}  g6 {[%clk 0:02:58]} 2. Nc3 {[%clk 0:03:00]}  Bg7 {[%clk 0:02:59]} 3. Nf3 {[%clk 0:03:00]}  d6 {[%clk 0:02:56]} 4. d4 {[%clk 0:02:57]}  e5 {[%clk 0:02:55]} 5. e4 {[%clk 0:02:53]}  Nc6 {[%clk 0:02:55]} 6. dxe5 {[%clk 0:02:40]}  dxe5 {[%clk 0:02:50]} 7. Qxd8+ {[%clk 0:02:39]}  Kxd8 {[%clk 0:02:50]} 8. Bg5+ {[%clk 0:02:39]}  f6 {[%clk 0:02:50]} 9. O-O-O+ {[%clk 0:02:37]}  Bd7 {[%clk 0:02:50]} 10. Be3 {[%clk 0:02:36]}  Bh6 {[%clk 0:02:50]} 11. Bxh6 {[%clk 0:02:32]}  Nxh6 {[%clk 0:02:51]} 12. Nd5 {[%clk 0:02:32]}  Rf8 {[%clk 0:02:50]} 13. c5 {[%clk 0:02:26]}  a6 {[%clk 0:02:43]} 14. b4 {[%clk 0:02:21]}  Kc8 {[%clk 0:02:43]} 15. h3 {[%clk 0:02:07]}  Ng8 {[%clk 0:02:40]} 16. Bc4 {[%clk 0:01:58]}  Nge7 {[%clk 0:02:37]} 17. a3 {[%clk 0:01:58]}  Be8 {[%clk 0:02:26]} 18. Nxe7+ {[%clk 0:01:23]}  Nxe7 {[%clk 0:02:27]} 19. Be6+ {[%clk 0:01:24]}  Kb8 {[%clk 0:02:27]} 20. Rd2 {[%clk 0:00:58]}  Ka7 {[%clk 0:02:19]} 21. Rhd1 {[%clk 0:00:42]}  Ba4 {[%clk 0:02:18]} 22. Re1 {[%clk 0:00:41]}  Rad8 {[%clk 0:02:17]} 23. Re3 {[%clk 0:00:36]}  Bb5 {[%clk 0:02:06]} 24. Bd5 {[%clk 0:00:33]}  Nxd5 {[%clk 0:01:53]} 25. exd5 {[%clk 0:00:33]}  Bc4 {[%clk 0:01:53]} 26. d6 {[%clk 0:00:28]}  cxd6 {[%clk 0:01:53]} 27. cxd6 {[%clk 0:00:28]}  Rd7 {[%clk 0:01:42]} 28. g4 {[%clk 0:00:26]}  g5 {[%clk 0:01:37]} 29. a4 {[%clk 0:00:19]}  Rfd8 {[%clk 0:01:36]} 30. a5 {[%clk 0:00:13]}  Rxd6 {[%clk 0:01:34]} 31. Rxd6 {[%clk 0:00:12]}  Rxd6 {[%clk 0:01:35]} 32. Rc3 {[%clk 0:00:13]}  Bf1 {[%clk 0:01:24]} 33. Nd2 {[%clk 0:00:13]}  Bg2 {[%clk 0:01:16]} 34. Nc4 {[%clk 0:00:08]}  Rc6 {[%clk 0:01:15]} 35. Kb2 {[%clk 0:00:09]}  Bxh3 {[%clk 0:01:13]} 36. Kb3 {[%clk 0:00:07]}  Bxg4 {[%clk 0:01:11]} 37. Ne3 {[%clk 0:00:02]}  Be6+ {[%clk 0:01:10]} 38. Kb2 {[%clk 0:00:02]}  Rxc3 {[%clk 0:01:10]} 39. Kxc3 {[%clk 0:00:03]}  h5 {[%clk 0:01:11]} 40. Kd3 {[%clk 0:00:03]}  h4 {[%clk 0:01:11]} 41. Ke4 {[%clk 0:00:04]}  Kb8 {[%clk 0:01:10]} 42. Kf3 {[%clk 0:00:04]}  Kc7 {[%clk 0:01:10]} 43. Nd1 {[%clk 0:00:04]}  g4+ {[%clk 0:01:07]} 44. Kg2 {[%clk 0:00:04]}  Kd6 {[%clk 0:01:06]} 45. Nc3 {[%clk 0:00:04]}  f5 {[%clk 0:01:07]} 46. f3 {[%clk 0:00:04]}  Bd5 {[%clk 0:01:04]} 47. Kf2 {[%clk 0:00:01]} 0-1


[Site "https://www.chess.com"]

[Event "Titled Tuesday Blitz August 1 Early 2023"]
[White "KrokerGuy"]
[Black "robertoalejandro10"]
[WhiteElo "2447"]
[BlackElo "2566"]
[Result "1-0"]
[Round "7"]
[TimeControl "180+1"]
[Date "2023.08.01"]
[WhiteClock "0:00:08"]
[BlackClock "0:00:00"]
[Board "109"]

1. e4 {[%clk 0:03:00]}  c5 {[%clk 0:02:58]} 2. Nf3 {[%clk 0:03:01]}  g6 {[%clk 0:02:58]} 3. d4 {[%clk 0:03:02]}  cxd4 {[%clk 0:02:59]} 4. Nxd4 {[%clk 0:03:03]}  Bg7 {[%clk 0:02:59]} 5. Nc3 {[%clk 0:03:04]}  Nc6 {[%clk 0:03:00]} 6. Be3 {[%clk 0:03:04]}  Nf6 {[%clk 0:03:00]} 7. Bc4 {[%clk 0:03:05]}  O-O {[%clk 0:03:01]} 8. Bb3 {[%clk 0:03:06]}  d5 {[%clk 0:03:01]} 9. exd5 {[%clk 0:02:59]}  Na5 {[%clk 0:03:01]} 10. Qf3 {[%clk 0:02:57]}  Nxb3 {[%clk 0:02:56]} 11. axb3 {[%clk 0:02:56]}  Bg4 {[%clk 0:02:26]} 12. Qg3 {[%clk 0:02:56]}  Qd7 {[%clk 0:02:26]} 13. h3 {[%clk 0:02:51]}  Bf5 {[%clk 0:02:26]} 14. Qf3 {[%clk 0:02:47]}  Rfd8 {[%clk 0:02:15]} 15. Nxf5 {[%clk 0:02:42]}  gxf5 {[%clk 0:02:15]} 16. Rd1 {[%clk 0:02:39]}  b6 {[%clk 0:01:59]} 17. O-O {[%clk 0:02:36]}  Rac8 {[%clk 0:02:00]} 18. Bd4 {[%clk 0:02:21]}  b5 {[%clk 0:01:55]} 19. b4 {[%clk 0:02:18]}  Rc4 {[%clk 0:01:54]} 20. Bc5 {[%clk 0:02:15]}  Ne4 {[%clk 0:01:50]} 21. Nxe4 {[%clk 0:02:10]}  fxe4 {[%clk 0:01:44]} 22. Qb3 {[%clk 0:02:01]}  Qf5 {[%clk 0:01:24]} 23. c3 {[%clk 0:01:20]}  Rxd5 {[%clk 0:00:55]} 24. Rxd5 {[%clk 0:01:21]}  Qxd5 {[%clk 0:00:55]} 25. Rd1 {[%clk 0:01:19]}  Qe6 {[%clk 0:00:39]} 26. Rd8+ {[%clk 0:01:07]}  Bf8 {[%clk 0:00:39]} 27. Bxa7 {[%clk 0:00:41]}  Rc6 {[%clk 0:00:04]} 28. Qd1 {[%clk 0:00:25]}  Rd6 {[%clk 0:00:02]} 29. Rxd6 {[%clk 0:00:24]}  exd6 {[%clk 0:00:03]} 30. Bd4 {[%clk 0:00:21]}  f5 {[%clk 0:00:03]} 31. Qe2 {[%clk 0:00:18]}  Qd5 {[%clk 0:00:01]} 32. Qh5 {[%clk 0:00:17]}  Bg7 {[%clk 0:00:01]} 33. Qe8+ {[%clk 0:00:17]}  Bf8 {[%clk 0:00:01]} 34. Qd8 {[%clk 0:00:08]}  f4 {[%clk 0:00:00]} 35. Qf6 {[%clk 0:00:08]} 1-0


[Site "https://www.chess.com"]